bitfinex/quotes_ETHUSD_20251122
["timestamp","ask_amount","ask_price","bid_price","bid_amount"]
[1763824562318,0.002,2746.3,2745.7,1.86159264]
[1763824562623,0.002,2746.3,2745.7,2.68933213]
[1763824562984,0.002,2746.3,2745.7,6.97725671]
[1763824563185,0.002,2746.3,2745.7,10.58289462]
[1763824563625,0.002,2746.3,2745.8,5.15849664]
[1763824563799,0.002,2746.3,2745.8,6.23609664]
[1763824564001,0.002,2746.3,2745.9,5.15849664]
[1763824564303,0.002,2746.3,2745.9,6.11309664]
[1763824565094,0.002,2746.3,2745.9,1.37709264]
[1763824565350,0.002,2746.3,2745.9,5.01888585]
[1763824565515,0.002,2746.3,2745.9,5.50338585]
[1763824565829,0.4674,2746.0,2745.9,4.4695327]
[1763824566024,0.002,2746.0,2745.9,4.4695327]
[1763824566203,0.002,2746.0,2745.9,5.3942327]
[1763824566398,0.002,2746.0,2745.9,8.7825327]
[1763824566613,0.002,2746.0,2745.9,4.4695327]
[1763824567403,0.1233,2746.0,2745.9,4.4695327]
[1763824568528,0.002,2746.0,2745.9,4.9365327]
[1763824569117,0.002,2746.0,2745.9,5.3942327]
[1763824570028,0.002,2746.0,2745.9,9.2402327]
[1763824570523,0.002,2746.0,2745.9,5.3942327]
[1763824570711,0.4896,2746.0,2745.9,3.64179321]
[1763824571193,0.002,2746.0,2745.9,3.64179321]
[1763824571738,0.4861,2746.0,2745.9,3.64179321]
[1763824571938,0.002,2746.0,2745.9,3.64179321]
[1763824572124,0.002,2746.0,2745.8,7.28384233]
[1763824572326,0.002,2746.0,2745.9,1.11298423]
[1763824572858,0.002,2746.0,2745.9,1.57998423]
[1763824573138,0.002,2746.0,2745.9,2.07410216]
[1763824573345,0.002,2746.0,2745.9,7.19618087]
[1763824575257,0.002,2746.0,2745.9,10.83797408]
[1763824575611,0.002,2746.0,2745.9,10.38027408]
[1763824576032,0.002,2746.0,2745.9,10.83797408]
[1763824576645,0.002,2746.0,2745.9,10.96097408]
[1763824578555,0.002,2746.2,2746.0,4.251504]
[1763824578754,0.002,2746.2,2746.0,5.7955164]
[1763824579824,0.002,2746.2,2746.0,9.43717699]
[1763824581258,0.002,2746.2,2746.0,10.15968675]
[1763824581454,0.002,2746.2,2746.0,9.75418275]
[1763824581652,0.4896,2746.1,2746.0,9.75418275]
[1763824582554,0.4896,2746.1,2746.0,5.90818275]
[1763824583525,0.4896,2746.1,2746.0,4.26097299]
[1763824584661,0.6205,2746.1,2746.0,4.26097299]
[1763824584955,0.6205,2746.1,2746.0,3.64166059]
[1763824585459,0.002,2746.1,2746.0,5.01565323]
[1763824585660,0.002,2746.1,2746.0,5.73764019]
[1763824585859,0.002,2746.1,2746.0,10.03534019]
[1763824586759,0.002,2746.1,2746.0,10.03634019]
[1763824586967,0.002,2746.1,2746.0,10.44184419]
[1763824588773,0.002,2746.1,2746.0,10.56484419]
[1763824589148,0.4896,2746.1,2746.0,3.64266059]
[1763824589457,0.6205,2746.1,2746.0,3.64266059]
[1763824590066,0.6205,2746.1,2746.0,0.001]
[1763824591872,0.6205,2746.1,2745.7,0.001]
[1763824592047,0.191,2745.8,2745.7,0.001]
[1763824592549,0.6884,2745.8,2745.7,0.001]
[1763824594757,0.0013,2745.8,2745.7,0.001]
[1763824594962,0.1172,2745.8,2745.7,0.001]
[1763824595147,0.6115,2745.8,2745.7,0.001]
[1763824595773,0.1172,2745.8,2745.7,0.001]
[1763824596388,0.5957,2745.8,2745.7,0.001]
[1763824596891,0.002,2746.1,2745.7,0.4898]
[1763824597189,0.002,2746.1,2745.8,0.4888]
[1763824597671,0.002,2746.1,2745.7,0.001]
[1763824597870,0.002,2746.1,2745.7,0.53324224]
[1763824598068,0.1638,2745.8,2745.7,0.53324224]
[1763824598273,0.1638,2745.8,2745.7,4.17530073]
[1763824598467,0.002,2746.1,2745.7,8.30345922]
[1763824599699,0.4587,2746.1,2745.7,8.30345922]
[1763824599882,0.4587,2746.1,2745.8,1.19456268]
[1763824600795,0.4587,2746.1,2745.9,7.28358642]
[1763824601102,0.3453,2746.0,2745.9,3.64179321]
[1763824601595,0.8009,2746.0,2745.9,3.64179321]
[1763824602188,0.8009,2746.0,2745.8,3.64191667]
[1763824602389,0.3481,2745.9,2745.8,3.64191667]
[1763824602591,0.8008,2745.9,2745.8,3.64191667]
[1763824603030,0.3481,2745.9,2745.7,0.001]
[1763824603193,0.002,2746.1,2745.7,0.001]
[1763824603394,0.002,2746.1,2746.0,0.4861]
[1763824604822,0.002,2746.1,2746.0,0.9701]
[1763824605030,0.002,2746.1,2746.0,5.71561209]
[1763824606738,0.002,2746.1,2746.0,6.62260473]
[1763824606896,0.002,2746.1,2746.0,11.18867525]
[1763824608736,0.002,2746.1,2746.0,11.59417925]
[1763824608939,0.002,2746.2,2746.1,5.15249664]
[1763824609133,0.002,2746.2,2746.1,6.93904177]
[1763824609339,0.002,2746.3,2746.2,3.64139538]
[1763824609516,0.002,2746.3,2746.2,4.54838802]
[1763824609709,0.2726,2746.3,2746.2,4.54838802]
[1763824610102,0.7274,2746.3,2746.2,3.64139538]
[1763824611422,0.7274,2746.3,2745.8,7.28380332]
[1763824611629,0.002,2746.3,2746.2,0.4861]
[1763824612035,0.002,2746.3,2745.9,7.82189534]
[1763824612328,0.4587,2746.3,2745.9,2.01647297]
[1763824613961,0.2706,2746.0,2745.9,2.01647297]
[1763824614179,0.2706,2746.0,2745.9,3.64179321]
[1763824614471,0.7254,2746.0,2745.9,3.64179321]
[1763824614627,0.7254,2746.0,2745.8,3.64188989]
[1763824614827,0.6412,2745.9,2745.7,3.64300817]
[1763824615038,0.2661,2745.8,2745.7,3.64305849]
[1763824615257,0.7228,2745.8,2745.7,3.64305849]
[1763824616164,0.7228,2745.8,2745.7,0.001]
[1763824616925,0.2661,2745.8,2745.7,0.001]
[1763824617141,0.18,2745.9,2745.7,0.001]
[1763824617742,0.4567,2746.2,2745.7,0.001]
[1763824617938,0.002,2746.3,2745.7,0.485]
[1763824618158,0.002,2746.3,2745.8,7.2838517]
[1763824618354,0.002,2746.3,2745.8,8.5157318]
[1763824618559,0.4587,2746.3,2745.8,8.5157318]
[1763824619562,0.4587,2746.3,2745.8,12.15765765]
[1763824619760,0.002,2746.3,2745.8,12.64165765]
[1763824620575,0.002,2746.3,2745.8,8.9997318]
[1763824620884,0.002,2746.3,2745.9,0.50041653]
[1763824621582,0.2706,2746.0,2745.7,0.001]
[1763824621805,0.0045,2745.9,2745.7,7.28501338]
[1763824622449,0.2661,2745.8,2745.7,3.64295489]
[1763824622694,0.002,2746.3,2745.7,7.28501338]
[1763824622995,0.4567,2746.2,2745.7,7.28501338]
[1763824623152,0.4567,2746.2,2745.7,8.3778441]
[1763824624850,0.2706,2745.8,2745.7,4.73578561]
[1763824625180,0.2706,2745.8,2745.7,3.64295489]
[1763824625485,0.7254,2745.8,2745.7,0.001]
[1763824625704,0.7254,2745.8,2745.7,3.64305849]
[1763824626770,0.7254,2745.8,2745.7,0.001]
[1763824630610,0.2706,2745.8,2745.7,0.001]
[1763824630774,0.123,2746.2,2745.7,0.4555]
[1763824630971,0.4684,2746.3,2745.7,0.4555]
[1763824631296,0.002,2746.3,2745.8,7.7719517]
[1763824632196,0.4411,2745.9,2745.7,0.001]
[1763824632506,0.255,2745.8,2745.7,0.001]
[1763824632677,0.7193,2745.8,2745.7,3.64305849]
[1763824633296,0.7193,2745.8,2745.7,0.001]
[1763824634120,1.124804,2745.8,2745.7,0.001]
[1763824634429,1.27077581,2745.8,2745.7,0.001]
[1763824634628,0.410104,2745.7,2745.4,0.001]
[1763824634807,0.2504,2745.5,2745.4,0.001]
[1763824635315,0.7168,2745.5,2745.4,0.001]
[1763824638325,0.2504,2745.5,2745.4,0.001]
[1763824638526,0.1861,2745.9,2745.4,0.4555]
[1763824638732,0.1861,2745.9,2745.4,0.9436]
[1763824638928,0.6123537,2746.1,2745.4,0.9436]
[1763824638929,0.123,2746.0,2745.4,0.9436]
[1763824639237,0.5894,2746.1,2745.5,7.2846476]
[1763824639441,0.5894,2746.1,2745.6,0.82282476]
[1763824640091,0.123,2746.1,2745.6,1.31092476]
[1763824640298,0.002,2746.2,2745.7,0.4881]
[1763824640710,0.002,2746.2,2745.6,0.82282476]
[1763824640930,0.4684,2746.2,2745.6,0.82282476]
[1763824641237,0.4684,2746.2,2745.8,3.64192585]
[1763824641417,0.4684,2746.2,2745.7,4.55144379]
[1763824641625,0.4684,2746.2,2745.7,3.64197192]
[1763824642332,0.4684,2746.2,2745.7,7.28403041]
[1763824642496,0.002,2746.2,2745.7,12.31174855]
[1763824642833,0.002,2746.2,2746.1,0.6455]
[1763824643409,0.002,2746.2,2746.1,4.77512798]
[1763824643741,0.002,2746.2,2746.1,10.64452423]
[1763824644411,0.002,2746.2,2746.1,11.55151687]
[1763824645212,0.002,2746.3,2746.2,0.405504]
[1763824645413,0.002,2746.3,2746.2,1.471104]
[1763824645618,0.002,2746.5,2746.2,9.6608874]
[1763824645820,0.002,2746.5,2746.3,3.14571516]
[1763824646555,0.002,2746.7,2746.4,2.25509664]
[1763824646704,0.1861,2748.4,2746.8,1.76699664]
[1763824646904,0.1861,2748.4,2747.4,0.90699264]
[1763824647141,0.1861,2748.4,2747.9,5.02771814]
[1763824647315,0.6525,2748.4,2747.9,5.02771814]
[1763824647664,0.097,2749.0,2748.0,7.27802036]
[1763824647665,0.1861,2748.7,2748.0,7.27802036]
[1763824647807,0.1861,2748.7,2748.0,7.76612036]
[1763824648640,0.6525,2748.7,2748.0,7.27802036]
[1763824648835,0.1516,2748.1,2747.6,0.90699264]
[1763824649144,0.1516,2748.1,2747.6,2.2407247]
[1763824650042,0.4632,2748.4,2747.8,0.90699264]
[1763824651144,0.4632,2748.4,2747.6,1.33373206]
[1763824651145,0.4632,2748.4,2747.6,3.63953589]
[1763824651311,0.4664,2748.6,2747.7,1.39509264]
[1763824651512,0.4664,2748.6,2747.9,5.02771814]
[1763824651713,0.4664,2748.6,2747.8,0.86741685]
[1763824651913,0.4664,2748.6,2747.9,3.63914261]
[1763824652848,0.4664,2748.6,2747.8,4.50663947]
[1763824653617,0.4664,2748.6,2747.8,8.14591452]
[1763824653818,0.4664,2748.6,2747.9,0.81459145]
[1763824654548,0.4664,2748.6,2748.0,7.27802036]
[1763824654920,0.1861,2748.7,2748.1,0.191]
[1763824655333,0.6525,2748.7,2748.1,0.191]
[1763824656655,0.002,2748.6,2748.2,3.63874536]
[1763824656823,0.501,2748.6,2748.3,0.74685536]
[1763824657227,0.1193,2748.4,2748.2,3.63874536]
[1763824657441,0.0012,2748.3,2748.2,3.63874536]
[1763824658231,0.4579,2748.3,2748.0,3.6389719]
[1763824658428,0.16,2748.1,2748.0,3.6389719]
[1763824658620,0.16,2748.1,2747.7,8.18580764]
[1763824658846,0.16,2748.1,2747.8,0.90928003]
[1763824660493,0.0028,2747.9,2747.5,5.02771814]
[1763824660638,0.2739,2747.8,2747.6,3.63953996]
[1763824661441,0.002,2748.6,2747.6,7.27907992]
[1763824661642,0.4567,2748.5,2747.9,5.02771814]
[1763824662192,0.002,2748.6,2748.0,0.4918]
[1763824662371,0.002,2748.6,2748.1,7.27775554]
[1763824662736,0.002,2748.6,2748.2,0.4918]
[1763824663571,0.17968182,2748.7,2748.2,0.4918]
[1763824663773,0.17968182,2748.7,2748.2,1.49618864]
[1763824664979,0.002,2748.9,2748.3,12.79674406]
[1763824665778,0.002,2748.9,2748.3,5.02771814]
[1763824665954,0.4567,2748.8,2748.3,5.02771814]
[1763824666150,0.2735,2748.4,2748.1,3.63883989]
[1763824666381,0.4567,2748.8,2748.1,3.63883989]
[1763824666580,0.2735,2748.2,2748.1,3.63883989]
[1763824666879,0.2735,2748.2,2747.7,3.63938146]
[1763824667086,0.4548,2748.1,2747.7,3.63938146]
[1763824667277,0.4548,2748.1,2747.7,8.50945094]
[1763824667791,0.4567,2748.4,2747.7,8.50945094]
[1763824668085,0.4567,2748.4,2747.7,3.63938146]
[1763824668286,0.4567,2748.4,2747.6,5.02771814]
[1763824668287,0.4567,2748.4,2747.6,8.66721017]
[1763824668488,0.2735,2747.8,2747.6,3.63949203]
[1763824668689,0.002,2748.9,2747.7,0.4625]
[1763824668872,0.183,2748.2,2747.8,3.63927505]
[1763824669673,0.6397,2748.2,2747.8,3.63927505]
[1763824670786,0.183,2748.2,2747.9,0.03639142]
[1763824671161,0.183,2748.4,2748.0,3.63901018]
[1763824671580,0.6397,2748.4,2748.0,3.63901018]
[1763824671784,0.183,2748.7,2748.1,0.52818877]
[1763824671961,0.002,2748.9,2748.5,0.4625]
[1763824672276,0.002,2748.9,2748.6,0.4625]
[1763824672867,0.4747,2748.7,2748.4,5.02771814]
[1763824673085,0.4747,2748.7,2748.4,5.57966995]
[1763824673292,0.4567,2748.7,2748.5,3.63834818]
[1763824673450,0.002,2748.9,2748.5,3.63834818]
[1763824673451,0.002,2748.9,2748.5,7.27669636]
[1763824674270,0.002,2748.9,2748.5,7.76849636]
[1763824674587,0.002,2748.7,2748.6,0.4918]
[1763824674985,0.002,2748.7,2748.6,0.9543]
[1763824675359,0.002,2748.7,2748.6,4.59251581]
[1763824675700,0.002,2748.7,2748.6,4.10071581]
[1763824676365,0.002,2748.7,2748.6,4.59251581]
[1763824676570,0.002,2748.7,2748.6,5.14446762]
[1763824679093,0.002,2748.7,2748.6,6.05146026]
[1763824679530,0.002,2748.9,2748.8,3.6379511]
[1763824679821,0.002,2748.9,2748.8,10.52696188]
[1763824680022,0.002,2748.9,2748.8,11.7073067]
[1763824680351,0.2786,2748.9,2748.8,0.90699264]
[1763824680551,0.2786,2748.9,2748.5,0.90699264]
[1763824680911,0.2786,2748.9,2748.5,0.4918]
[1763824681105,0.2786,2748.9,2748.3,7.27722592]
[1763824681106,0.6417,2748.9,2748.3,7.27722592]
[1763824681791,0.6417,2748.9,2747.9,7.47905672]
[1763824681792,0.4747,2748.4,2748.0,3.63901018]
[1763824681993,0.2588,2748.8,2747.9,3.63909444]
[1763824682226,0.4567,2748.7,2747.9,7.27823705]
[1763824682427,0.4567,2748.7,2748.0,0.90699264]
[1763824682946,0.185,2748.9,2748.1,0.4918]
[1763824683149,0.4747,2748.1,2747.5,3.63961069]
[1763824683435,0.2588,2748.6,2747.5,3.63961069]
[1763824683745,0.4567,2748.5,2747.5,7.27928311]
[1763824683899,0.4567,2748.5,2747.6,0.84980023]
[1763824684828,0.2766,2747.7,2747.5,3.63961069]
[1763824684994,0.4567,2748.5,2747.5,3.63961069]
[1763824685329,0.0931,2747.8,2747.5,3.63961069]
[1763824685552,0.0931,2747.8,2747.4,3.64078195]
[1763824685553,0.3422,2747.6,2747.4,0.001]
[1763824685729,0.0931,2748.0,2747.7,0.488]
[1763824686095,0.2229,2747.8,2747.4,0.001]
[1763824686527,0.6948,2747.8,2747.4,0.001]
[1763824686730,0.4719,2748.3,2747.7,0.488]
[1763824687028,0.4719,2748.3,2747.4,0.86783165]
[1763824687618,0.4719,2748.3,2747.5,7.27934484]
[1763824688828,0.4719,2748.3,2747.5,7.75954484]
[1763824689030,0.4719,2748.3,2747.6,0.86546498]
[1763824689704,0.4719,2748.3,2747.7,3.6394075]
[1763824689902,0.4719,2748.3,2747.7,7.278815]
[1763824690315,0.4744,2748.6,2747.7,7.278815]
[1763824690537,0.4744,2748.6,2747.8,0.4802]
[1763824690738,0.6594,2748.9,2747.9,0.86683165]
[1763824691100,0.6594,2748.9,2748.0,0.4802]
[1763824691922,0.6594,2748.9,2748.1,7.27775554]
[1763824692227,0.002,2748.7,2748.1,7.27775554]
[1763824692426,0.002,2748.7,2748.2,0.4802]
[1763824692734,0.002,2748.7,2748.3,0.77579555]
[1763824692939,0.002,2748.7,2748.3,1.25599555]
[1763824693137,0.002,2748.7,2748.3,0.77579555]
[1763824693303,0.002,2748.7,2748.4,0.4802]
[1763824693504,0.002,2748.7,2748.6,0.488]
[1763824693699,0.002,2748.7,2748.6,0.9682]
[1763824694134,0.002,2748.7,2748.6,4.60641581]
[1763824694406,0.002,2748.7,2748.6,5.43089136]
[1763824695353,0.002,2748.7,2748.6,4.95069136]
[1763824695520,0.1105,2748.7,2748.6,3.63821581]
[1763824697175,0.002,2748.7,2748.6,4.12621581]
[1763824697848,0.002,2748.7,2748.6,3.63821581]
[1763824698478,0.002,2748.7,2748.4,7.27696114]
[1763824698866,0.002,2748.7,2748.4,7.75716114]
[1763824699242,0.1085,2748.5,2748.3,3.63859496]
[1763824699476,0.0011,2748.4,2748.1,3.63885064]
[1763824700071,0.4755,2748.4,2748.1,7.27772841]
[1763824700641,0.4755,2748.4,2747.8,8.18554274]
[1763824700845,0.0011,2748.4,2747.8,7.2785501]
[1763824701077,0.4744,2748.5,2747.5,5.31307914]
[1763824701078,0.1074,2747.9,2747.6,3.63943577]
[1763824701244,0.4744,2748.6,2747.8,0.488]
[1763824701446,0.125,2748.7,2747.9,5.31207914]
[1763824701663,0.125,2748.7,2748.0,0.58000791]
[1763824702460,0.002,2748.7,2748.0,0.58000791]
[1763824702662,0.4764,2748.7,2748.1,3.63887777]
[1763824703261,0.1085,2748.2,2748.1,3.63887777]
[1763824705877,0.4764,2748.7,2748.1,0.488]
[1763824706079,0.4764,2748.7,2747.8,0.4802]
[1763824706285,0.4764,2748.7,2747.9,1.13983948]
[1763824706446,0.4764,2748.7,2748.0,3.84]
[1763824706648,0.4764,2748.7,2747.9,1.13983948]
[1763824707269,0.4764,2748.7,2747.9,1.62003948]
[1763824707651,0.002,2748.7,2748.0,0.4802]
[1763824707885,0.002,2748.7,2748.1,7.27775554]
[1763824708085,0.002,2748.7,2748.1,7.87021269]
[1763824708254,0.002,2748.7,2748.2,0.4802]
[1763824708446,0.002,2748.7,2748.1,7.87021269]
[1763824708666,0.002,2748.7,2748.2,0.4802]
[1763824709581,0.002,2748.7,2748.6,0.488]
[1763824709988,0.002,2748.7,2748.6,5.51340845]
[1763824710166,0.002,2748.7,2748.6,6.65324793]
[1763824710361,0.002,2748.7,2748.6,10.49324793]
[1763824711499,0.002,2748.7,2748.6,11.21010799]
[1763824711900,0.002,2748.7,2748.6,7.37010799]
[1763824712411,0.002,2748.7,2748.6,6.17304793]
[1763824712596,0.002,2748.7,2748.6,4.77805529]
[1763824712798,0.1105,2748.7,2748.6,3.63821581]
[1763824713203,0.002,2748.7,2748.6,4.12621581]
[1763824713778,0.002,2748.7,2748.6,3.63821581]
[1763824713984,0.002,2748.7,2748.6,0.488]
[1763824715578,0.002,2748.7,2748.6,1.73280707]
[1763824715800,0.002,2748.7,2748.6,2.61461281]
[1763824715987,0.002,2748.7,2748.6,6.12982862]
[1763824716199,0.002,2748.7,2748.6,10.49833262]
[1763824716390,0.002,2748.7,2748.6,10.09282862]
[1763824717416,0.002,2748.7,2748.6,5.64962862]
[1763824717576,0.002,2748.7,2748.6,6.55662126]
[1763824718614,0.002,2748.7,2748.6,4.9214037]
[1763824719830,0.002,2748.7,2748.6,5.3795037]
[1763824721116,0.4568,2748.7,2748.6,4.4334037]
[1763824721282,0.4568,2748.7,2748.6,3.63821581]
[1763824721482,0.5877,2748.7,2748.4,0.90699264]
[1763824721778,0.0013,2748.5,2748.3,3.63861296]
[1763824721986,0.0013,2748.5,2748.3,7.27722592]
[1763824722399,0.1329,2748.7,2748.3,7.27722592]
[1763824722598,0.1329,2748.7,2748.4,1.10872259]
[1763824722918,0.4582,2748.6,2748.3,3.63861296]
[1763824723118,0.1276,2748.4,2748.1,3.63884856]
[1763824723322,0.1263,2748.2,2748.1,4.54587041]
[1763824723782,0.4602,2748.7,2748.1,8.67954818]
[1763824723980,0.4602,2748.7,2748.2,0.86795482]
[1763824724185,0.002,2748.7,2748.2,0.86795482]
[1763824724410,0.002,2748.7,2748.3,0.4581]
[1763824724608,0.002,2748.7,2748.3,3.63861296]
[1763824724809,0.002,2748.7,2748.3,7.73532592]
[1763824725022,0.4602,2748.7,2748.3,8.14156773]
[1763824727809,0.002,2748.7,2748.6,0.4948]
[1763824728425,0.3204,2748.7,2748.3,8.14156773]
[1763824728726,0.0027,2748.5,2748.3,8.14156773]
[1763824729230,0.0027,2748.5,2748.4,0.81415677]
[1763824729934,0.4602,2748.7,2748.5,3.63834818]
[1763824730090,0.1276,2748.6,2748.5,3.63834818]
[1763824730290,0.1276,2748.6,2748.4,3.63845385]
[1763824730525,0.0013,2748.5,2748.4,3.63845385]
[1763824731422,0.002,2748.7,2748.4,8.95754021]
[1763824731622,0.002,2748.7,2748.6,0.4948]
[1763824731801,0.002,2748.7,2748.6,4.13301581]
[1763824731996,0.002,2748.7,2748.4,0.72770579]
[1763824731997,0.002,2748.7,2748.4,4.3661395]
[1763824732201,0.1296,2748.7,2748.5,3.63834818]
[1763824732402,0.5845,2748.7,2748.5,3.63834818]
[1763824732597,0.0045,2748.6,2748.5,3.63834818]
[1763824733313,0.4627,2748.6,2748.2,3.63870373]
[1763824733627,0.0057,2748.2,2747.7,3.63935673]
[1763824733829,0.5192,2747.9,2747.5,0.001]
[1763824734394,0.5192,2747.9,2747.5,0.90799264]
[1763824736016,0.5192,2747.9,2747.5,3.64061389]
[1763824736017,0.7832,2747.9,2747.5,3.64061389]
[1763824736221,0.7832,2747.9,2747.5,0.001]
[1763824736712,1.188704,2747.9,2747.5,0.001]
[1763824737237,1.311704,2747.9,2747.5,0.001]
[1763824739347,0.0026,2747.6,2747.5,0.001]
[1763824739708,0.866304,2747.6,2747.5,0.001]
[1763824740826,0.866304,2747.6,2747.4,0.001]
[1763824741045,0.405504,2747.2,2745.6,0.4581]
[1763824741243,1.51359664,2746.9,2745.5,0.001]
[1763824741409,0.405504,2746.7,2745.5,0.001]
[1763824741812,0.4582,2746.6,2745.5,0.001]
[1763824742015,0.528504,2746.5,2745.5,4.10139497]
[1763824742329,0.1945,2745.6,2745.5,0.001]
[1763824742641,0.123,2745.9,2745.5,0.001]
[1763824742844,0.4582,2746.4,2745.5,4.5026476]
[1763824743014,0.123,2746.3,2745.5,0.4958]
[1763824743213,0.123,2746.3,2745.5,4.13811404]
[1763824743409,0.4582,2746.5,2745.6,0.03642191]
[1763824743635,0.123,2746.4,2745.6,0.4581]
[1763824743839,0.4582,2746.3,2745.5,7.28563784]
[1763824744046,0.123,2746.4,2745.6,1.23257378]
[1763824744451,0.5812,2746.4,2745.6,0.77447378]
[1763824744611,0.1918,2746.7,2746.3,0.4948]
[1763824744812,0.123,2746.8,2746.3,0.4948]
[1763824745316,0.4582,2746.7,2746.1,3.83377713]
[1763824745518,0.4582,2746.7,2746.1,8.40750967]
[1763824745828,0.1966,2746.2,2745.6,3.64207037]
[1763824746216,0.4535,2746.1,2745.5,3.64326989]
[1763824747111,0.405504,2746.8,2745.6,0.4758]
[1763824747325,0.5791,2746.7,2746.0,0.4845]
[1763824747523,0.5791,2746.7,2745.6,0.4758]
[1763824747754,0.4561,2746.6,2745.7,1.27915621]
[1763824748262,0.4561,2746.6,2745.8,0.4758]
[1763824749760,0.4561,2746.6,2745.9,3.64179321]
[1763824750132,0.4561,2746.6,2745.9,7.28358642]
[1763824750331,0.123,2746.7,2745.9,7.28358642]
[1763824750580,0.1927,2747.1,2746.0,0.92894042]
[1763824750733,0.4561,2746.8,2746.0,0.45314042]
[1763824750939,0.2732,2746.1,2745.8,0.90699264]
[1763824751134,0.2732,2746.1,2745.7,3.64205849]
[1763824751745,0.2732,2746.1,2745.6,0.90699264]
[1763824751746,0.7275,2746.1,2745.6,0.90699264]
[1763824753384,0.0045,2745.7,2745.5,0.001]
[1763824753668,0.4543,2746.0,2745.5,0.001]
[1763824753669,0.091,2745.8,2745.5,0.001]
[1763824753870,0.4543,2746.0,2745.5,0.001]
[1763824754738,0.123,2746.3,2745.6,0.4758]
[1763824754981,0.123,2746.3,2745.9,0.4845]
[1763824755281,0.4543,2746.8,2746.2,0.667]
[1763824755581,0.4561,2746.7,2746.0,5.50596843]
[1763824755785,0.7718,2747.1,2746.1,7.94135596]
[1763824756079,0.7718,2747.1,2746.1,11.58288394]
[1763824756291,0.3157,2747.1,2746.2,0.4758]
[1763824756440,0.3157,2747.1,2746.2,1.38279264]
[1763824756782,0.123,2747.1,2746.4,5.03016843]
[1763824756983,15.18216843,2749.2,2747.0,0.4845]
[1763824757308,0.7037,2747.9,2747.0,0.4845]
[1763824757454,0.7037,2747.9,2747.1,0.1825]
[1763824757650,0.7037,2747.9,2747.2,3.64006988]
[1763824758404,0.6382,2747.9,2747.2,3.64006988]
[1763824758703,0.4561,2747.8,2747.2,3.64006988]
[1763824759056,0.4561,2747.8,2746.8,5.03016843]
[1763824759256,0.4561,2747.8,2746.8,3.64049928]
[1763824759455,0.4561,2747.8,2746.8,7.28109925]
[1763824759883,0.4561,2747.8,2746.9,0.4758]
[1763824760264,0.4561,2747.8,2746.8,7.28109925]
[1763824760589,0.4561,2747.8,2746.8,3.64049928]
[1763824760797,0.4561,2747.8,2746.8,7.28109925]
[1763824761089,0.4561,2747.8,2746.8,7.83169609]
[1763824761293,0.4561,2747.8,2746.9,0.4758]
[1763824761458,0.1821,2747.9,2746.9,0.4758]
[1763824761991,0.1821,2747.9,2747.0,7.28066982]
[1763824762189,0.1821,2747.9,2747.1,0.6583]
[1763824762498,0.1821,2747.9,2747.1,1.81623755]
[1763824762681,0.002,2747.8,2747.2,0.4758]
[1763824762991,0.002,2747.8,2747.0,3.64033491]
[1763824763196,0.4533,2747.7,2746.7,3.64073251]
[1763824763489,0.4533,2747.7,2746.7,8.28683438]
[1763824764091,0.4533,2747.7,2746.7,8.76263438]
[1763824765593,0.4533,2747.7,2746.7,1.48116936]
[1763824765898,0.4533,2747.7,2746.2,3.81]
[1763824765899,0.1742,2746.8,2746.3,7.28252556]
[1763824766602,0.123,2747.3,2746.7,0.4845]
[1763824767666,0.1714,2746.8,2746.3,12.31269399]
[1763824767879,0.1714,2746.8,2746.4,1.2312694]
[1763824768094,0.1714,2746.8,2746.5,3.64099763]
[1763824768704,0.123,2747.3,2746.4,1.2312694]
[1763824768705,0.0045,2746.6,2746.4,3.6411075]
[1763824769489,0.4561,2747.0,2746.4,3.6411075]
[1763824770201,0.5791,2747.3,2746.3,7.28252556]
[1763824770364,0.5791,2747.3,2746.5,0.4758]
[1763824771397,0.123,2747.3,2746.6,0.03640865]
[1763824771698,0.123,2747.3,2746.5,0.4758]
[1763824772200,0.123,2747.3,2746.6,10.92259518]
[1763824772414,0.1714,2746.6,2746.2,3.64139538]
[1763824772616,0.1714,2746.6,2746.3,0.4730888]
[1763824772789,0.4533,2747.0,2746.3,0.4730888]
[1763824774316,0.4533,2747.0,2745.9,3.64166185]
[1763824774501,0.4533,2747.0,2745.9,7.28345506]
[1763824774694,0.4533,2747.0,2746.0,0.4758]
[1763824775421,0.4533,2747.0,2746.1,0.1825]
[1763824775924,0.123,2747.1,2746.2,0.4725]
[1763824776080,0.123,2747.1,2746.3,5.03016843]
[1763824776397,0.123,2747.1,2746.5,7.28199526]
[1763824776793,0.123,2747.1,2746.5,7.75449526]
[1763824777004,0.123,2747.1,2746.5,3.64099763]
[1763824777206,0.1292,2746.6,2746.0,8.19031382]
[1763824777388,0.4987,2747.0,2746.0,7.28332118]
[1763824777720,0.4988,2746.9,2746.0,7.28332118]
[1763824780127,0.4988,2746.9,2746.1,0.1977]
[1763824780329,0.4988,2746.9,2746.2,3.64139538]
[1763824781027,0.4988,2746.9,2746.2,7.28279076]
[1763824781196,0.4988,2746.9,2746.2,3.64139538]
[1763824782123,0.4988,2746.9,2746.1,4.29482951]
[1763824782325,0.4988,2746.9,2746.1,7.93635749]
[1763824782531,0.4988,2746.9,2746.1,9.23311008]
[1763824782926,0.4988,2746.9,2746.1,5.5915821]
[1763824783133,0.4988,2746.9,2746.1,5.1358821]
[1763824783741,0.4988,2746.9,2746.1,8.77741008]
[1763824784103,0.4988,2746.9,2746.1,5.1358821]
[1763824784441,0.4988,2746.9,2746.1,8.77741008]
[1763824785330,0.1292,2746.2,2746.1,0.001]
[1763824785852,0.6243,2746.2,2746.1,0.001]
[1763824789238,1.029804,2746.2,2746.1,0.001]